[Event "25e Open International Landes Côtes Sud - Soorts Hossegor"]
[Site "Hossegor, France"]
[Date "2018.05.19"]
[Round "1.1"]
[White "Kirk, Ezra"]
[Black "Dubertrand, Bernard"]
[Result "1-0"]
[TimeControl "90 minutes + 30 secondes par coup"]
[WhiteElo "2420"]
[BlackElo "1562"]

1. d4 {[%clk 01:30:56]} {[%emt 00:00:02]} d5 {[%clk 01:30:35]} {[%emt
00:00:26]} 2. c4 {[%clk 01:31:21]} {[%emt 00:00:06]} dxc4 {[%clk 01:30:59]}
{[%emt 00:00:06]} 3. e3 {[%clk 01:31:36]} {[%emt 00:00:13]} e6 {[%clk
01:30:37]} {[%emt 00:00:53]} 4. Bxc4 {[%clk 01:31:55]} {[%emt 00:00:11]} Nc6
{[%clk 01:30:46]} {[%emt 00:00:22]} 5. Nf3 {[%clk 01:32:17]} {[%emt 00:00:08]}
Bd6 {[%clk 01:27:47]} {[%emt 00:03:29]} 6. e4 {[%clk 01:30:30]} {[%emt
00:02:16]} e5 {[%clk 01:26:19]} {[%emt 00:01:59]} 7. dxe5 {[%clk 01:30:35]}
{[%emt 00:00:25]} Bxe5 {[%clk 01:25:55]} {[%emt 00:00:54]} 8. Bxf7+ {[%clk
01:30:08]} {[%emt 00:00:57]} Kxf7 {[%clk 01:24:01]} {[%emt 00:02:24]} 9. Nxe5+
{[%clk 01:28:45]} {[%emt 00:01:53]} Ke6 {[%clk 01:24:29]} {[%emt 00:00:03]} 10.
Nd3 {[%clk 01:22:37]} {[%emt 00:06:38]} Nf6 {[%clk 01:19:14]} {[%emt 00:05:45]}
11. O-O {[%clk 01:21:27]} {[%emt 00:01:40]} Re8 {[%clk 01:17:20]} {[%emt
00:02:23]} 12. Qb3+ {[%clk 01:19:59]} {[%emt 00:01:57]} Ke7 {[%clk 01:16:50]}
{[%emt 00:01:01]} 13. e5 {[%clk 01:19:58]} {[%emt 00:00:31]} Ne4 {[%clk
01:15:15]} {[%emt 00:02:05]} 14. Nc3 {[%clk 01:18:05]} {[%emt 00:02:23]} Nd4
{[%clk 01:10:43]} {[%emt 00:05:02]} 15. Qa3+ {[%clk 01:16:05]} {[%emt
00:02:29]} Kf7 {[%clk 01:10:40]} {[%emt 00:00:34]} 16. Nxe4 {[%clk 01:15:42]}
{[%emt 00:00:52]} Bf5 {[%clk 01:08:32]} {[%emt 00:02:39]} 17. Ng3 {[%clk
01:13:24]} {[%emt 00:02:46]} Be6 {[%clk 01:04:04]} {[%emt 00:05:00]} 18. Nc5
{[%clk 01:11:45]} {[%emt 00:02:07]} Bd5 {[%clk 01:02:26]} {[%emt 00:02:08]} 19.
Qd3 {[%clk 01:11:00]} {[%emt 00:01:14]} Bc6 {[%clk 00:58:39]} {[%emt 00:04:18]}
20. Qc4+ {[%clk 01:07:49]} {[%emt 00:03:41]} Kf8 {[%clk 00:56:39]} {[%emt
00:02:31]} 21. Be3 {[%clk 01:07:24]} {[%emt 00:00:54]} b6 {[%clk 00:41:45]}
{[%emt 00:15:25]} 22. Bxd4 {[%clk 01:07:39]} {[%emt 00:00:14]} Bd5 {[%clk
00:41:23]} {[%emt 00:00:52]} 23. Qd3 {[%clk 01:05:41]} {[%emt 00:02:26]} bxc5
{[%emt 00:00:42]} 24. Bc3 {[%emt 00:00:33]} Kg8 {[%clk 00:40:03]} {[%emt
00:00:36]} 25. Nf5 {[%clk 01:05:34]} {[%emt 00:00:37]} Qd7 {[%clk 00:38:25]}
{[%emt 00:02:09]} 26. Nxg7 {[%clk 01:04:49]} {[%emt 00:01:15]} Qf7 {[%clk
00:35:43]} {[%emt 00:03:12]} 27. e6 {[%clk 01:04:40]} {[%emt 00:00:39]} Bxe6
{[%clk 00:35:54]} {[%emt 00:00:18]} 1-0

[Event "25e Open International Landes Côtes Sud - Soorts Hossegor"]
[Site "Hossegor, France"]
[Date "2018.05.19"]
[Round "1.2"]
[White "Duhau-Marmon, Nicolas"]
[Black "Fantinel, Thibault"]
[Result "0-1"]
[TimeControl "90 minutes + 30 secondes par coup"]
[WhiteElo "1562"]
[BlackElo "2406"]

1. e4 {[%clk 01:30:57]} {[%emt 00:00:02]} c5 {[%clk 01:30:56]} {[%emt
00:00:05]} 2. Nf3 {[%clk 01:31:22]} {[%emt 00:00:05]} Nc6 {[%clk 01:31:21]}
{[%emt 00:00:04]} 3. d4 {[%clk 01:31:47]} {[%emt 00:00:05]} cxd4 {[%clk
01:31:49]} {[%emt 00:00:04]} 4. Nxd4 {[%clk 01:32:11]} {[%emt 00:00:07]} e6
{[%clk 01:31:50]} {[%emt 00:00:27]} 5. Nc3 {[%clk 01:30:57]} {[%emt 00:01:44]}
Qc7 {[%clk 01:32:16]} {[%emt 00:00:04]} 6. Be3 {[%clk 01:27:47]} {[%emt
00:03:39]} a6 {[%clk 01:32:37]} {[%emt 00:00:09]} 7. Bd3 {[%clk 01:25:43]}
{[%emt 00:02:34]} Nf6 {[%clk 01:32:56]} {[%emt 00:00:11]} 8. f4 {[%clk
01:20:52]} {[%emt 00:05:21]} Nxd4 {[%clk 01:29:08]} {[%emt 00:04:18]} 9. e5
{[%clk 01:18:39]} {[%emt 00:02:43]} Nc6 {[%clk 01:25:50]} {[%emt 00:03:48]} 10.
exf6 {[%clk 01:18:05]} {[%emt 00:01:05]} gxf6 {[%clk 01:26:17]} {[%emt
00:00:02]} 11. Ne4 {[%clk 01:13:28]} {[%emt 00:05:07]} Be7 {[%clk 01:26:26]}
{[%emt 00:00:21]} 12. Qh5 {[%clk 01:09:12]} {[%emt 00:04:47]} d5 {[%clk
01:24:14]} {[%emt 00:02:42]} 13. Ng3 {[%clk 01:07:30]} {[%emt 00:02:11]} Bd7
{[%clk 01:24:06]} {[%emt 00:00:38]} 14. O-O {[%clk 01:04:14]} {[%emt 00:03:47]}
f5 {[%clk 01:22:22]} {[%emt 00:02:14]} 15. a3 {[%clk 01:01:58]} {[%emt
00:02:46]} O-O-O {[%clk 01:20:03]} {[%emt 00:02:48]} 16. Qxf7 {[%clk 00:57:55]}
{[%emt 00:04:33]} h5 {[%clk 01:20:01]} {[%emt 00:00:32]} 17. Qg7 {[%clk
00:40:04]} {[%emt 00:18:21]} Rdg8 {[%clk 01:19:34]} {[%emt 00:00:57]} 18. Qc3
{[%clk 00:40:12]} {[%emt 00:00:22]} d4 {[%clk 01:19:56]} {[%emt 00:00:09]} 19.
Bxd4 {[%clk 00:37:43]} {[%emt 00:02:59]} Nxd4 {[%clk 01:20:06]} {[%emt
00:00:20]} 20. Qxc7+ {[%clk 00:37:39]} {[%emt 00:00:34]} Kxc7 {[%clk 01:20:34]}
{[%emt 00:00:02]} 21. Ne2 {[%clk 00:36:30]} {[%emt 00:01:38]} Bc5 {[%clk
01:20:24]} {[%emt 00:00:41]} 22. Kh1 {[%clk 00:36:10]} {[%emt 00:00:49]} Bc6
{[%clk 01:20:37]} {[%emt 00:00:17]} 0-1

[Event "25e Open International Landes Côtes Sud - Soorts Hossegor"]
[Site "Hossegor, France"]
[Date "2018.05.19"]
[Round "1.3"]
[White "Etchegaray, Patrice"]
[Black "Le Feuvre, Bernard"]
[Result "1-0"]
[TimeControl "90 minutes + 30 secondes par coup"]
[WhiteElo "2342"]
[BlackElo "1524"]

1. e4 {[%clk 01:30:52]} {[%emt 00:00:07]} e5 {[%clk 01:30:56]} {[%emt
00:00:05]} 2. Bc4 {[%clk 01:30:57]} {[%emt 00:00:26]} Nc6 {[%clk 01:28:32]}
{[%emt 00:02:53]} 3. Nc3 {[%clk 01:29:29]} {[%emt 00:01:58]} Nf6 {[%clk
01:28:11]} {[%emt 00:00:52]} 4. d3 {[%clk 01:29:42]} {[%emt 00:00:16]} Na5
{[%clk 01:24:00]} {[%emt 00:04:42]} 5. Nf3 {[%clk 01:27:26]} {[%emt 00:02:46]}
Nxc4 {[%clk 01:19:46]} {[%emt 00:04:44]} 6. dxc4 {[%clk 01:27:54]} {[%emt
00:00:03]} Bb4 {[%clk 01:15:54]} {[%emt 00:04:22]} 7. Qd3 {[%clk 01:25:48]}
{[%emt 00:02:35]} d6 {[%clk 01:09:57]} {[%emt 00:06:27]} 8. Bd2 {[%clk
01:24:47]} {[%emt 00:01:30]} O-O {[%clk 01:07:53]} {[%emt 00:02:35]} 9. h3
{[%clk 01:23:35]} {[%emt 00:01:42]} Nd7 {[%clk 01:02:04]} {[%emt 00:06:19]} 10.
a3 {[%clk 01:19:07]} {[%emt 00:04:59]} Bxc3 {[%clk 00:58:20]} {[%emt 00:04:14]}
11. Bxc3 {[%clk 01:18:12]} {[%emt 00:01:24]} Nc5 {[%clk 00:55:47]} {[%emt
00:03:03]} 12. Qe3 {[%clk 01:18:23]} {[%emt 00:00:19]} b6 {[%clk 00:50:01]}
{[%emt 00:06:16]} 13. O-O-O {[%clk 01:17:03]} {[%emt 00:01:49]} Qe8 {[%clk
00:49:26]} {[%emt 00:01:06]} 14. Bb4 {[%clk 01:07:09]} {[%emt 00:10:24]} a5
{[%clk 00:46:55]} {[%emt 00:03:00]} 15. Bxc5 {[%clk 01:07:31]} {[%emt
00:00:08]} bxc5 {[%clk 00:47:10]} {[%emt 00:00:15]} 16. g4 {[%clk 01:06:16]}
{[%emt 00:01:45]} Ba6 {[%clk 00:45:12]} {[%emt 00:02:28]} 17. Qc3 {[%clk
01:05:21]} {[%emt 00:01:23]} Qc6 {[%clk 00:35:32]} {[%emt 00:10:12]} 18. Rhe1
{[%clk 01:03:18]} {[%emt 00:02:33]} Qb6 {[%clk 00:35:26]} {[%emt 00:00:37]} 19.
Nh4 {[%clk 01:02:17]} {[%emt 00:01:28]} Rfb8 {[%clk 00:33:51]} {[%emt
00:02:07]} 20. Nf5 {[%clk 01:02:02]} {[%emt 00:00:45]} Kf8 {[%clk 00:33:22]}
{[%emt 00:01:00]} 21. f4 {[%clk 01:01:43]} {[%emt 00:00:48]} f6 {[%clk
00:17:12]} {[%emt 00:16:41]} 22. g5 {[%clk 01:00:42]} {[%emt 00:01:29]} Bc8
{[%clk 00:15:56]} {[%emt 00:01:47]} 23. gxf6 {[%clk 01:00:18]} {[%emt
00:00:53]} Bxf5 {[%clk 00:15:33]} {[%emt 00:00:54]} 24. fxg7+ {[%clk 01:00:27]}
{[%emt 00:00:21]} Kxg7 {[%clk 00:15:45]} {[%emt 00:00:17]} 25. exf5 {[%clk
01:00:42]} {[%emt 00:00:15]} 1-0

[ePGN "0.1;DGT LiveChess/2.1"]

[Event "25e Open International Landes Côtes Sud - Soorts Hossegor"]
[Site "Hossegor, France"]
[Date "2018.05.19"]
[Round "2.3"]
[White "Saunders, Mark"]
[Black "Etchegaray, Patrice"]
[Result "0-1"]
[TimeControl "90 minutes + 30 secondes par coup"]
[WhiteElo "1769"]
[BlackElo "2342"]

1. e4 {[%clk 01:30:57]} {[%emt 00:00:02]} c5 {[%clk 01:30:16]} {[%emt
00:00:44]} 2. d4 {[%clk 01:31:23]} {[%emt 00:00:05]} cxd4 {[%clk 01:30:37]}
{[%emt 00:00:09]} 3. c3 {[%clk 01:31:52]} Nf6 {[%clk 01:30:27]} {[%emt
00:00:39]} 4. e5 {[%clk 01:32:11]} {[%emt 00:00:11]} Nd5 {[%clk 01:30:51]}
{[%emt 00:00:06]} 5. cxd4 {[%clk 01:32:15]} {[%emt 00:00:26]} d6 {[%clk
01:30:45]} {[%emt 00:00:35]} 6. Nf3 {[%clk 01:29:32]} {[%emt 00:03:13]} Nc6
{[%clk 01:30:48]} {[%emt 00:00:27]} 7. Bc4 {[%clk 01:28:51]} {[%emt 00:01:12]}
Nb6 {[%clk 01:29:23]} {[%emt 00:01:55]} 8. Bb3 {[%clk 01:24:14]} {[%emt
00:05:07]} dxe5 {[%clk 01:29:34]} {[%emt 00:00:19]} 9. dxe5 {[%clk 01:17:39]}
{[%emt 00:07:06]} Qxd1+ {[%clk 01:29:20]} {[%emt 00:00:43]} 10. Bxd1 {[%clk
01:18:01]} {[%emt 00:00:08]} Nc4 {[%clk 01:24:57]} {[%emt 00:04:52]} 11. Nc3
{[%clk 01:11:55]} {[%emt 00:06:36]} Bd7 {[%clk 01:23:06]} {[%emt 00:02:20]} 12.
O-O {[%clk 01:08:24]} {[%emt 00:04:02]} N4xe5 {[%clk 01:21:20]} {[%emt
00:02:17]} 13. Nxe5 {[%clk 01:07:34]} {[%emt 00:01:20]} Nxe5 {[%clk 01:19:22]}
{[%emt 00:02:27]} 14. Be2 {[%clk 01:07:19]} {[%emt 00:00:45]} e6 {[%emt
00:08:12]} 15. Rd1 {[%clk 01:03:43]} {[%emt 00:03:51]} a6 {[%clk 01:11:55]}
{[%emt 00:00:30]} 16. Bf4 {[%clk 01:01:45]} {[%emt 00:02:28]} Ng6 {[%clk
01:10:36]} {[%emt 00:01:49]} 17. Be3 {[%clk 01:00:39]} {[%emt 00:01:36]} Bc6
{[%clk 01:10:30]} {[%emt 00:00:35]} 18. Rd2 {[%clk 00:55:46]} {[%emt 00:05:24]}
Be7 {[%clk 01:10:22]} {[%emt 00:00:37]} 19. Rad1 {[%clk 00:55:47]} {[%emt
00:00:29]} Rd8 {[%clk 01:06:38]} {[%emt 00:04:14]} 20. Bb6 {[%clk 00:39:10]}
{[%emt 00:17:08]} Rxd2 {[%clk 01:06:05]} {[%emt 00:01:03]} 21. Rxd2 {[%clk
00:39:34]} {[%emt 00:00:07]} O-O {[%clk 01:05:03]} {[%emt 00:01:31]} 22. a3
{[%clk 00:39:48]} {[%emt 00:00:17]} Rc8 {[%clk 01:04:20]} {[%emt 00:01:12]} 23.
g3 {[%clk 00:37:30]} {[%emt 00:02:49]} Bf6 {[%clk 01:02:56]} {[%emt 00:01:53]}
24. f3 {[%clk 00:33:14]} {[%emt 00:04:47]} Bxc3 {[%clk 01:02:08]} {[%emt
00:01:18]} 25. bxc3 {[%clk 00:33:37]} {[%emt 00:00:06]} Ne5 {[%clk 01:02:08]}
{[%emt 00:00:30]} 26. Kf2 {[%clk 00:33:38]} {[%emt 00:00:30]} Nd7 {[%clk
01:00:59]} {[%emt 00:01:40]} 27. Be3 {[%clk 00:32:34]} {[%emt 00:01:33]} Kf8
{[%clk 01:00:50]} {[%emt 00:00:37]} 28. c4 {[%clk 00:30:34]} {[%emt 00:02:32]}
Ke7 {[%clk 01:01:05]} {[%emt 00:00:15]} 29. f4 {[%clk 00:25:44]} {[%emt
00:05:20]} Nf6 {[%clk 01:00:06]} {[%emt 00:01:28]} 30. Kg1 {[%clk 00:20:11]}
{[%emt 00:06:05]} Rd8 {[%clk 00:55:54]} {[%emt 00:04:42]} 31. Rb2 {[%clk
00:19:34]} {[%emt 00:01:07]} Rd7 {[%clk 00:52:03]} {[%emt 00:04:21]} 32. Rb6
{[%clk 00:16:48]} {[%emt 00:03:16]} Kd8 {[%clk 00:51:40]} {[%emt 00:00:51]} 33.
g4 {[%clk 00:16:03]} {[%emt 00:01:17]} Ne8 {[%clk 00:49:03]} {[%emt 00:03:07]}
34. Kf1 {[%clk 00:12:47]} {[%emt 00:03:46]} Nd6 {[%clk 00:47:45]} {[%emt
00:01:47]} 35. Ke1 {[%clk 00:12:36]} {[%emt 00:00:43]} Nc8 {[%clk 00:46:59]}
{[%emt 00:01:16]} 36. Rb2 {[%clk 00:12:37]} {[%emt 00:00:28]} Kc7 {[%clk
00:46:19]} {[%emt 00:01:10]} 37. h4 {[%clk 00:11:24]} {[%emt 00:01:43]} Be4
{[%clk 00:45:19]} {[%emt 00:01:29]} 38. Rb3 {[%clk 00:10:05]} {[%emt 00:01:49]}
Ne7 {[%clk 00:40:49]} {[%emt 00:05:01]} 39. a4 {[%clk 00:09:01]} {[%emt
00:01:34]} Nc6 {[%clk 00:38:11]} {[%emt 00:03:08]} 40. Bb6+ {[%clk 00:09:04]}
{[%emt 00:00:27]} Kc8 {[%clk 00:38:39]} {[%emt 00:00:02]} 41. a5 {[%clk
00:08:03]} {[%emt 00:01:31]} Nd4 {[%clk 00:37:19]} {[%emt 00:01:50]} 42. Rc3
{[%clk 00:07:48]} {[%emt 00:00:45]} f5 {[%clk 00:34:50]} {[%emt 00:02:59]} 43.
g5 {[%clk 00:07:32]} {[%emt 00:00:45]} Nc2+ {[%clk 00:34:08]} {[%emt 00:01:12]}
44. Kf1 {[%clk 00:06:57]} {[%emt 00:01:05]} Rd2 {[%clk 00:33:19]} {[%emt
00:01:19]} 45. Bf3 {[%clk 00:05:17]} {[%emt 00:02:10]} Kd7 {[%clk 00:30:45]}
{[%emt 00:03:04]} 46. h5 {[%clk 00:04:38]} {[%emt 00:01:09]} e5 {[%clk
00:27:09]} {[%emt 00:04:06]} 47. fxe5 {[%clk 00:04:30]} {[%emt 00:00:37]} Ke6
{[%clk 00:27:36]} {[%emt 00:00:04]} 48. Bc7 {[%clk 00:04:15]} {[%emt 00:00:45]}
Nd4 {[%clk 00:26:45]} {[%emt 00:01:21]} 49. Bxe4 {[%clk 00:04:12]} {[%emt
00:00:33]} fxe4 {[%clk 00:27:13]} {[%emt 00:00:02]} 50. Ke1 {[%clk 00:03:35]}
{[%emt 00:01:07]} Rh2 {[%clk 00:26:53]} {[%emt 00:00:49]} 51. Rd3 {[%clk
00:03:25]} {[%emt 00:00:41]} exd3 {[%emt 00:00:26]} 0-1

[Event "25e Open International Landes Côtes Sud - Soorts Hossegor"]
[Site "Hossegor, France"]
[Date "2018.05.19"]
[Round "2.2"]
[White "Fantinel, Thibault"]
[Black "Labarrere, Daniel"]
[Result "1-0"]
[TimeControl "90 minutes + 30 secondes par coup"]
[WhiteElo "2406"]
[BlackElo "1768"]

1. e4 {[%clk 01:30:55]} {[%emt 00:00:05]} e6 {[%clk 01:29:34]} {[%emt
00:01:26]} 2. d4 {[%clk 01:30:47]} {[%emt 00:00:38]} d5 {[%clk 01:29:56]}
{[%emt 00:00:08]} 3. Nc3 {[%clk 01:30:14]} {[%emt 00:01:04]} Nf6 {[%clk
01:29:02]} {[%emt 00:01:22]} 4. Bg5 {[%clk 01:30:32]} {[%emt 00:00:11]} dxe4
{[%clk 01:29:01]} {[%emt 00:00:32]} 5. Nxe4 {[%clk 01:30:47]} {[%emt 00:00:15]}
Nbd7 {[%clk 01:28:07]} {[%emt 00:01:23]} 6. Nxf6+ {[%clk 01:30:03]} {[%emt
00:01:16]} gxf6 {[%clk 01:26:33]} {[%emt 00:02:04]} 7. Be3 {[%clk 01:29:34]}
{[%emt 00:00:58]} b6 {[%clk 01:26:20]} {[%emt 00:00:44]} 8. Qf3 {[%clk
01:24:33]} {[%emt 00:05:31]} Rb8 {[%clk 01:23:16]} {[%emt 00:03:34]} 9. O-O-O
{[%clk 01:24:11]} {[%emt 00:00:52]} Bb7 {[%clk 01:21:35]} {[%emt 00:02:11]} 10.
Qh3 {[%clk 01:23:46]} {[%emt 00:00:55]} Qe7 {[%clk 01:08:00]} {[%emt 00:14:05]}
11. Nf3 {[%clk 01:22:31]} {[%emt 00:01:45]} c5 {[%clk 00:56:09]} {[%emt
00:12:21]} 12. dxc5 {[%clk 01:16:37]} {[%emt 00:06:24]} a6 {[%clk 00:53:17]}
{[%emt 00:03:21]} 13. cxb6 {[%clk 01:16:14]} {[%emt 00:00:54]} Qb4 {[%clk
00:51:58]} {[%emt 00:01:47]} 14. Nd4 {[%clk 01:09:14]} {[%emt 00:07:32]} Bd5
{[%clk 00:46:12]} {[%emt 00:06:14]} 15. Nb3 {[%clk 01:02:32]} {[%emt 00:07:13]}
Nxb6 {[%clk 00:36:20]} {[%emt 00:10:22]} 16. a3 {[%clk 00:59:13]} {[%emt
00:03:49]} Qa4 {[%clk 00:29:50]} {[%emt 00:06:59]} 17. Bxb6 {[%clk 00:53:16]}
{[%emt 00:06:28]} Rxb6 {[%clk 00:18:04]} {[%emt 00:12:16]} 18. Rxd5 {[%clk
00:50:36]} {[%emt 00:03:11]} Rxb3 {[%clk 00:15:12]} {[%emt 00:03:21]} 19. cxb3
{[%clk 00:49:14]} {[%emt 00:01:53]} Qc6+ {[%clk 00:15:18]} {[%emt 00:00:23]} 20.
Bc4 {[%clk 00:43:34]} {[%emt 00:06:11]} exd5 {[%clk 00:14:48]} {[%emt
00:00:59]} 21. Re1+ {[%clk 00:43:42]} {[%emt 00:00:23]} Kd8 {[%clk 00:14:16]}
{[%emt 00:01:03]} 22. Rd1 {[%clk 00:42:25]} {[%emt 00:01:47]} Bd6 {[%clk
00:11:42]} {[%emt 00:03:03]} 23. Rxd5 {[%clk 00:42:30]} {[%emt 00:00:25]} Re8
{[%clk 00:09:08]} {[%emt 00:03:03]} 24. Qxh7 {[%clk 00:40:09]} {[%emt
00:02:51]} Kc7 {[%clk 00:06:50]} {[%emt 00:02:47]} 25. Qxf7+ {[%clk 00:38:31]}
{[%emt 00:02:10]} Re7 {[%clk 00:06:41]} {[%emt 00:00:37]} 26. Qxf6 {[%clk
00:37:56]} {[%emt 00:01:07]} 1-0

[Event "25e Open International Landes Côtes Sud - Soorts Hossegor"]
[Site "Hossegor, France"]
[Date "2018.05.19"]
[Round "2.1"]
[White "Dubreuil, Remy"]
[Black "Kirk, Ezra"]
[Result "0-1"]
[TimeControl "90 minutes + 30 secondes par coup"]
[WhiteElo "1796"]
[BlackElo "2420"]

1. b3 {[%clk 01:30:52]} {[%emt 00:00:07]} Nf6 {[%clk 01:30:50]} {[%emt
00:00:12]} 2. Bb2 {[%clk 01:31:11]} {[%emt 00:00:09]} d5 {[%clk 01:30:33]}
{[%emt 00:00:47]} 3. e3 {[%clk 01:31:20]} {[%emt 00:00:23]} c5 {[%clk
01:27:56]} {[%emt 00:03:04]} 4. Nf3 {[%clk 01:31:10]} {[%emt 00:00:40]} Nc6
{[%clk 01:26:44]} {[%emt 00:01:43]} 5. Bb5 {[%clk 01:30:56]} {[%emt 00:00:44]}
e6 {[%clk 01:24:23]} {[%emt 00:02:51]} 6. O-O {[%clk 01:29:46]} {[%emt
00:01:41]} Bd6 {[%clk 01:23:05]} {[%emt 00:01:48]} 7. d3 {[%clk 01:28:59]}
{[%emt 00:01:17]} Qc7 {[%clk 01:22:22]} {[%emt 00:01:13]} 8. Nbd2 {[%clk
01:27:43]} {[%emt 00:01:45]} O-O {[%clk 01:21:18]} {[%emt 00:01:34]} 9. Bxc6
{[%clk 01:27:26]} {[%emt 00:00:48]} bxc6 {[%clk 01:21:41]} {[%emt 00:00:07]} 10.
c4 {[%clk 01:27:43]} {[%emt 00:00:13]} e5 {[%clk 01:21:52]} {[%emt 00:00:20]}
11. e4 {[%clk 01:26:45]} {[%emt 00:01:26]} d4 {[%clk 01:21:36]} {[%emt
00:00:47]} 12. Rc1 {[%clk 01:25:00]} {[%emt 00:02:14]} g6 {[%clk 01:21:10]}
{[%emt 00:00:57]} 13. a3 {[%clk 01:16:06]} {[%emt 00:09:25]} a5 {[%clk
01:21:16]} {[%emt 00:00:23]} 14. b4 {[%clk 01:14:36]} {[%emt 00:02:00]} axb4
{[%clk 01:19:33]} {[%emt 00:02:13]} 15. axb4 {[%clk 01:14:52]} {[%emt
00:00:14]} cxb4 {[%clk 01:19:15]} {[%emt 00:00:48]} 16. c5 {[%clk 01:12:12]}
{[%emt 00:03:10]} Be7 {[%clk 01:15:03]} {[%emt 00:04:42]} 17. Ne1 {[%clk
01:04:43]} {[%emt 00:08:00]} Nd7 {[%clk 01:11:12]} {[%emt 00:04:21]} 18. f4
{[%clk 01:04:16]} {[%emt 00:00:56]} Nxc5 {[%clk 01:08:08]} {[%emt 00:03:35]} 19.
fxe5 {[%clk 01:04:14]} {[%emt 00:00:32]} Rd8 {[%clk 01:07:18]} {[%emt
00:01:20]} 20. Ndf3 {[%clk 01:02:29]} {[%emt 00:02:14]} Qb6 {[%clk 00:53:07]}
{[%emt 00:14:42]} 21. Qe2 {[%clk 00:50:46]} {[%emt 00:12:11]} Na4 {[%clk
00:51:53]} {[%emt 00:01:46]} 22. Qf2 {[%clk 00:49:55]} {[%emt 00:01:19]} Nxb2
{[%clk 00:50:02]} {[%emt 00:02:23]} 23. Qxb2 {[%clk 00:49:11]} {[%emt
00:01:14]} Be6 {[%clk 00:50:10]} {[%emt 00:00:23]} 24. Ra1 {[%clk 00:37:18]}
{[%emt 00:12:22]} Rxa1 {[%clk 00:48:14]} {[%emt 00:02:27]} 25. Qxa1 {[%clk
00:37:44]} {[%emt 00:00:03]} b3 {[%clk 00:48:36]} {[%emt 00:00:09]} 26. Nd2
{[%clk 00:32:28]} {[%emt 00:05:45]} Bb4 {[%clk 00:48:03]} {[%emt 00:01:02]} 27.
Nb1 {[%clk 00:28:26]} {[%emt 00:04:31]} c5 {[%clk 00:46:56]} {[%emt 00:01:40]}
28. Nf3 {[%clk 00:27:31]} {[%emt 00:01:24]} c4 {[%clk 00:46:46]} {[%emt
00:00:41]} 29. dxc4 {[%clk 00:25:15]} {[%emt 00:02:46]} d3+ {[%clk 00:46:32]}
{[%emt 00:00:44]} 30. Kh1 {[%clk 00:25:32]} {[%emt 00:00:12]} d2 {[%clk
00:44:54]} {[%emt 00:02:08]} 31. Rd1 {[%clk 00:23:38]} {[%emt 00:02:23]} Qf2
{[%clk 00:44:41]} {[%emt 00:00:43]} 32. Nc3 {[%clk 00:21:43]} {[%emt 00:02:24]}
Bh3 {[%clk 00:44:42]} {[%emt 00:00:32]} 33. Nh4 {[%clk 00:18:41]} {[%emt
00:03:31]} Bxc3 {[%clk 00:44:27]} {[%emt 00:00:46]} 34. Qxc3 {[%clk 00:18:50]}
{[%emt 00:00:21]} Qe2 {[%clk 00:44:40]} {[%emt 00:00:15]} 35. Qa1 {[%emt
00:00:47]} b2 {[%emt 00:00:18]} 36. Qb1 {[%clk 00:17:44]} {[%emt 00:00:30]}
Qxd1 {[%clk 00:44:57]} {[%emt 00:00:15]} 0-1

[ePGN "0.1;DGT LiveChess/2.1"]

[Event "25e Open International Landes Côtes Sud - Soorts Hossegor"]
[Site "Hossegor, France"]
[Date "2018.05.20"]
[Round "3.3"]
[White "Etchegaray, Patrice"]
[Black "Gattegno, Laurent"]
[Result "1-0"]
[TimeControl "90 minutes + 30 secondes par coup"]
[WhiteElo "2342"]
[BlackElo "1918"]

1. Nf3 {[%clk 01:30:06]} {[%emt 00:00:54]} d5 {[%clk 01:29:55]} {[%emt
00:01:05]} 2. g3 {[%clk 01:29:53]} {[%emt 00:00:42]} c5 {[%clk 01:30:16]}
{[%emt 00:00:09]} 3. Bg2 {[%clk 01:30:14]} {[%emt 00:00:08]} Nc6 {[%clk
01:30:40]} {[%emt 00:00:06]} 4. d4 {[%clk 01:29:31]} {[%emt 00:01:13]} cxd4
{[%clk 01:30:05]} {[%emt 00:01:06]} 5. Nxd4 {[%clk 01:29:52]} {[%emt 00:00:09]}
e5 {[%clk 01:30:27]} {[%emt 00:00:07]} 6. Nxc6 {[%clk 01:30:03]} {[%emt
00:00:19]} bxc6 {[%clk 01:30:51]} {[%emt 00:00:06]} 7. O-O {[%clk 01:30:17]}
{[%emt 00:00:15]} Nf6 {[%clk 01:30:30]} {[%emt 00:00:51]} 8. c4 {[%clk
01:30:07]} {[%emt 00:00:40]} h6 {[%clk 01:28:45]} {[%emt 00:02:15]} 9. Nc3
{[%clk 01:25:21]} {[%emt 00:05:16]} Be6 {[%clk 01:27:52]} {[%emt 00:01:23]} 10.
Qa4 {[%clk 01:24:33]} {[%emt 00:01:18]} Qd7 {[%clk 01:27:01]} {[%emt 00:01:22]}
11. cxd5 {[%clk 01:17:19]} {[%emt 00:07:44]} cxd5 {[%clk 01:26:53]} {[%emt
00:00:39]} 12. Qxd7+ {[%clk 01:16:55]} {[%emt 00:00:54]} Kxd7 {[%clk 01:27:15]}
{[%emt 00:00:08]} 13. Rd1 {[%clk 01:16:53]} {[%emt 00:00:32]} Kc6 {[%clk
01:27:32]} {[%emt 00:00:13]} 14. Be3 {[%clk 01:16:22]} {[%emt 00:01:01]} Rd8
{[%clk 01:16:00]} {[%emt 00:12:03]} 15. Bxa7 {[%clk 01:11:55]} {[%emt
00:04:57]} Kb7 {[%clk 01:10:06]} {[%emt 00:06:23]} 16. Be3 {[%clk 01:11:52]}
{[%emt 00:00:33]} Be7 {[%clk 01:09:40]} {[%emt 00:00:56]} 17. Rac1 {[%clk
01:07:31]} {[%emt 00:04:50]} Ka6 {[%clk 00:54:29]} {[%emt 00:15:42]} 18. Na4
{[%clk 00:54:20]} {[%emt 00:13:40]} d4 {[%clk 00:53:25]} {[%emt 00:01:35]} 19.
Bd2 {[%clk 00:50:31]} {[%emt 00:04:19]} Rc8 {[%clk 00:52:49]} {[%emt 00:01:06]}
20. e3 {[%clk 00:45:44]} {[%emt 00:05:17]} Kb5 {[%clk 00:51:17]} {[%emt
00:02:03]} 21. b3 {[%clk 00:45:52]} {[%emt 00:00:21]} Ba3 {[%clk 00:51:32]}
{[%emt 00:00:15]} 22. Bf1+ {[%clk 00:45:56]} {[%emt 00:00:26]} 1-0